[Event "*** Titled Tuesday Blitz"]
[Site "Chess.com"]
[Date "2020.05.19"]
[Round "4"]
[White "2008king"]
[Black "AEMEffi"]
[Result "0-1"]
[WhiteElo "2055"]
[BlackElo "2298"]
[TimeControl "180+1"]
[EndTime "12:40:53 PDT"]
[Termination "AEMEffi won by checkmate"]

1. e4 {[%clk 0:03:00.9]} 1... e5 {[%clk 0:02:59.1]} 2. Nf3 {[%clk 0:03:00.9]}
2... Nc6 {[%clk 0:02:59.3]} 3. d4 {[%clk 0:02:59.9]} 3... exd4 {[%clk
0:02:58.7]} 4. Nxd4 {[%clk 0:03:00.8]} 4... Nf6 {[%clk 0:02:57.9]} 5. Nxc6
{[%clk 0:02:58.7]} 5... bxc6 {[%clk 0:02:56.7]} 6. e5 {[%clk 0:02:59.1]} 6...
Qe7 {[%clk 0:02:56.3]} 7. Qe2 {[%clk 0:02:58.1]} 7... Nd5 {[%clk 0:02:56.3]} 8.
h4 {[%clk 0:02:52.3]} 8... Qe6 {[%clk 0:02:44]} 9. Rh3 {[%clk 0:02:40.5]} 9...
Bc5 {[%clk 0:02:41.9]} 10. c4 {[%clk 0:02:37.3]} 10... Bb4+ {[%clk 0:02:40.5]}
11. Bd2 {[%clk 0:02:35.7]} 11... Nf4 {[%clk 0:02:37.1]} 12. Qf3 {[%clk
0:02:24.4]} 12... Bxd2+ {[%clk 0:02:33.7]} 13. Nxd2 {[%clk 0:02:25.3]} 13...
Nxh3 {[%clk 0:02:33.2]} 14. Qxh3 {[%clk 0:02:22.5]} 14... Qxe5+ {[%clk
0:02:24.9]} 15. Qe3 {[%clk 0:02:21.6]} 15... Qxe3+ {[%clk 0:02:24.2]} 16. fxe3
{[%clk 0:02:22.5]} 16... O-O {[%clk 0:02:22.7]} 17. e4 {[%clk 0:02:23]} 17...
Rb8 {[%clk 0:02:22]} 18. O-O-O {[%clk 0:02:23.3]} 18... d6 {[%clk 0:02:21.7]}
19. c5 {[%clk 0:01:56.5]} 19... Be6 {[%clk 0:02:13.8]} 20. b3 {[%clk 0:01:53.5]}
20... d5 {[%clk 0:02:07.8]} 21. e5 {[%clk 0:01:51.1]} 21... f6 {[%clk
0:02:04.4]} 22. Nf3 {[%clk 0:01:51]} 22... Bg4 {[%clk 0:01:58.6]} 23. e6 {[%clk
0:01:20.5]} 23... Rfe8 {[%clk 0:01:46.6]} 24. Re1 {[%clk 0:01:17.5]} 24... Rxe6
{[%clk 0:01:46.3]} 25. Rxe6 {[%clk 0:01:16.6]} 25... Bxe6 {[%clk 0:01:47.2]} 26.
Nd4 {[%clk 0:01:16.8]} 26... Bd7 {[%clk 0:01:47.4]} 27. g3 {[%clk 0:01:14.8]}
27... Rb4 {[%clk 0:01:47.1]} 28. Nc2 {[%clk 0:00:53.1]} 28... Rg4 {[%clk
0:01:46.5]} 29. Bh3 {[%clk 0:00:51.7]} 29... Rxg3 {[%clk 0:01:45.3]} 30. Bxd7
{[%clk 0:00:52.1]} 30... g5 {[%clk 0:01:41]} 31. hxg5 {[%clk 0:00:49.4]} 31...
fxg5 {[%clk 0:01:41.2]} 32. Bxc6 {[%clk 0:00:50.3]} 32... Rd3 {[%clk 0:01:38.3]}
33. Nb4 {[%clk 0:00:49.8]} 33... Rc3+ {[%clk 0:01:38.3]} 34. Kd2 {[%clk
0:00:46.6]} 34... Rxc5 {[%clk 0:01:39.2]} 35. Bxd5+ {[%clk 0:00:46.6]} 35... Kg7
{[%clk 0:01:38.7]} 36. Bf3 {[%clk 0:00:46.2]} 36... Rf5 {[%clk 0:01:33.6]} 37.
Be4 {[%clk 0:00:42.8]} 37... Rf2+ {[%clk 0:01:24.7]} 38. Ke3 {[%clk 0:00:40.1]}
38... Rh2 {[%clk 0:01:23.1]} 39. a4 {[%clk 0:00:34.5]} 39... Rh3+ {[%clk
0:01:21.1]} 40. Kf2 {[%clk 0:00:31.3]} 40... Rxb3 {[%clk 0:01:20.8]} 41. Nd5
{[%clk 0:00:31.6]} 41... c5 {[%clk 0:01:15.5]} 42. a5 {[%clk 0:00:29]} 42... Ra3
{[%clk 0:01:13.3]} 43. Nc7 {[%clk 0:00:12.4]} 43... Rxa5 {[%clk 0:01:12.6]} 44.
Ne6+ {[%clk 0:00:12.8]} 44... Kf6 {[%clk 0:01:12.2]} 45. Nf8 {[%clk 0:00:12.9]}
45... h5 {[%clk 0:01:08.1]} 46. Nh7+ {[%clk 0:00:13]} 46... Ke5 {[%clk
0:01:06.9]} 47. Bc2 {[%clk 0:00:12.4]} 47... Kf4 {[%clk 0:01:05.7]} 48. Bd3
{[%clk 0:00:11.9]} 48... g4 {[%clk 0:01:00.5]} 49. Nf6 {[%clk 0:00:10.5]} 49...
Ra2+ {[%clk 0:00:58.1]} 50. Be2 {[%clk 0:00:09.5]} 50... g3+ {[%clk 0:00:55.4]}
51. Kf1 {[%clk 0:00:10.1]} 51... g2+ {[%clk 0:00:52.4]} 52. Kxg2 {[%clk
0:00:09.9]} 52... Rxe2+ {[%clk 0:00:51.5]} 53. Kf1 {[%clk 0:00:10.4]} 53... Re5
{[%clk 0:00:50.7]} 54. Kf2 {[%clk 0:00:09.9]} 54... h4 {[%clk 0:00:49.8]} 55.
Nd7 {[%clk 0:00:10.4]} 55... Rd5 {[%clk 0:00:48.1]} 56. Nb8 {[%clk 0:00:10.1]}
56... c4 {[%clk 0:00:46.7]} 57. Nc6 {[%clk 0:00:10.1]} 57... c3 {[%clk 0:00:46]}
58. Nb4 {[%clk 0:00:10.4]} 58... Rd2+ {[%clk 0:00:45.9]} 59. Ke1 {[%clk
0:00:10.3]} 59... h3 {[%clk 0:00:45.4]} 60. Nc6 {[%clk 0:00:08.7]} 60... h2
{[%clk 0:00:44.8]} 61. Ne7 {[%clk 0:00:08.9]} 61... h1=Q# {[%clk 0:00:44.1]} 0-1

[Event "*** Titled Tuesday Blitz"]
[Site "Chess.com"]
[Date "2020.05.19"]
[Round "4"]
[White "AGW2016"]
[Black "mamonika"]
[Result "1-0"]
[WhiteElo "2231"]
[BlackElo "1961"]
[TimeControl "180+1"]
[EndTime "12:40:56 PDT"]
[Termination "AGW2016 won on time"]

1. e4 {[%clk 0:03:00.9]} 1... c5 {[%clk 0:02:54.5]} 2. c3 {[%clk 0:03:00.5]}
2... Nf6 {[%clk 0:02:52.3]} 3. e5 {[%clk 0:03:01]} 3... Nd5 {[%clk 0:02:50.9]}
4. d4 {[%clk 0:03:01.9]} 4... cxd4 {[%clk 0:02:44.7]} 5. Nf3 {[%clk 0:03:02.3]}
5... e6 {[%clk 0:02:44.9]} 6. cxd4 {[%clk 0:03:02.3]} 6... d6 {[%clk 0:02:44.2]}
7. Bc4 {[%clk 0:03:01.8]} 7... Nb6 {[%clk 0:02:43.3]} 8. Bb3 {[%clk 0:03:02.2]}
8... Nc6 {[%clk 0:02:21.2]} 9. O-O {[%clk 0:03:01.3]} 9... dxe5 {[%clk
0:02:21.3]} 10. dxe5 {[%clk 0:03:02.2]} 10... Qxd1 {[%clk 0:02:05.3]} 11. Rxd1
{[%clk 0:03:03.1]} 11... Be7 {[%clk 0:02:00.7]} 12. Nc3 {[%clk 0:03:02.2]} 12...
O-O {[%clk 0:01:54.2]} 13. Be3 {[%clk 0:02:41.5]} 13... Nd7 {[%clk 0:01:37.5]}
14. Nb5 {[%clk 0:02:17.7]} 14... Ndxe5 {[%clk 0:01:33.1]} 15. Nxe5 {[%clk
0:02:16]} 15... Nxe5 {[%clk 0:01:33]} 16. Nc7 {[%clk 0:02:16.7]} 16... Rb8
{[%clk 0:01:31.6]} 17. Bxa7 {[%clk 0:02:17.2]} 17... Nc6 {[%clk 0:01:17.5]} 18.
Bxb8 {[%clk 0:01:57.9]} 18... Nxb8 {[%clk 0:01:18.4]} 19. Nb5 {[%clk 0:01:54.9]}
19... Bd7 {[%clk 0:01:15.6]} 20. Nd6 {[%clk 0:01:52]} 20... Bc6 {[%clk
0:01:12.8]} 21. Rac1 {[%clk 0:01:48.3]} 21... Na6 {[%clk 0:01:05.4]} 22. Nxb7
{[%clk 0:01:37.8]} 22... Bxb7 {[%clk 0:00:56.7]} 23. Rd7 {[%clk 0:01:34.9]}
23... Bg5 {[%clk 0:00:56.7]} 24. Rcd1 {[%clk 0:01:05.9]} 24... Bc8 {[%clk
0:00:56]} 25. Ra7 {[%clk 0:00:58.1]} 25... Nc5 {[%clk 0:00:55.1]} 26. Bc4 {[%clk
0:00:57.1]} 26... h6 {[%clk 0:00:44.9]} 27. b4 {[%clk 0:00:53.4]} 27... Ne4
{[%clk 0:00:30.2]} 28. b5 {[%clk 0:00:31]} 28... Bd8 {[%clk 0:00:30.1]} 29. Ra8
{[%clk 0:00:25.2]} 29... Bb6 {[%clk 0:00:28.7]} 30. Rb1 {[%clk 0:00:18.1]} 30...
Nxf2 {[%clk 0:00:23.7]} 31. Kf1 {[%clk 0:00:17.6]} 31... Ne4 {[%clk 0:00:22.7]}
32. Ke2 {[%clk 0:00:15.8]} 32... Nc3+ {[%clk 0:00:22.2]} 33. Kd3 {[%clk
0:00:16.1]} 33... Nxb1 {[%clk 0:00:22.3]} 34. a4 {[%clk 0:00:16.5]} 34... Na3
{[%clk 0:00:17.8]} 35. Bb3 {[%clk 0:00:16.4]} 35... Bb7 {[%clk 0:00:15.5]} 36.
Rxf8+ {[%clk 0:00:16.4]} 36... Kxf8 {[%clk 0:00:15.3]} 37. g3 {[%clk 0:00:17.3]}
37... Ke7 {[%clk 0:00:15.4]} 38. Kc3 {[%clk 0:00:17.8]} 38... Ba5+ {[%clk
0:00:11.2]} 39. Kb2 {[%clk 0:00:18]} 39... Nxb5 {[%clk 0:00:06.1]} 40. axb5
{[%clk 0:00:18.9]} 40... Kd6 {[%clk 0:00:05.7]} 41. Bc4 {[%clk 0:00:18.7]} 41...
Kc5 {[%clk 0:00:05.9]} 42. Bf1 {[%clk 0:00:19.3]} 42... Kb6 {[%clk 0:00:03.1]}
43. Kb3 {[%clk 0:00:19.7]} 43... Bd5+ {[%clk 0:00:03.2]} 44. Ka4 {[%clk
0:00:20.6]} 44... e5 {[%clk 0:00:02.8]} 45. Be2 {[%clk 0:00:20.7]} 45... e4
{[%clk 0:00:02.8]} 46. g4 {[%clk 0:00:20.6]} 46... g6 {[%clk 0:00:02.4]} 47. h4
{[%clk 0:00:21.1]} 47... f5 {[%clk 0:00:02.5]} 48. h5 {[%clk 0:00:21]} 1-0

[Event "*** Titled Tuesday Blitz"]
[Site "Chess.com"]
[Date "2020.05.19"]
[Round "4"]
[White "SaraciNderim"]
[Black "Rud_Makarian"]
[Result "1-0"]
[WhiteElo "2841"]
[BlackElo "2571"]
[TimeControl "180+1"]
[EndTime "12:40:57 PDT"]
[Termination "SaraciNderim won on time"]

1. b3 {[%clk 0:02:58.9]} 1... Nf6 {[%clk 0:02:59]} 2. Bb2 {[%clk 0:02:58.5]}
2... e6 {[%clk 0:02:59.6]} 3. e3 {[%clk 0:02:58.5]} 3... b6 {[%clk 0:02:59.2]}
4. Nf3 {[%clk 0:02:59]} 4... Bb7 {[%clk 0:02:59.3]} 5. d4 {[%clk 0:02:59.5]}
5... Be7 {[%clk 0:02:59.4]} 6. g3 {[%clk 0:02:59.2]} 6... O-O {[%clk 0:02:59.5]}
7. Bg2 {[%clk 0:02:59.5]} 7... c5 {[%clk 0:02:58.2]} 8. O-O {[%clk 0:02:59.4]}
8... cxd4 {[%clk 0:02:57.5]} 9. exd4 {[%clk 0:03:00.3]} 9... d6 {[%clk
0:02:52.5]} 10. c4 {[%clk 0:02:59.8]} 10... Nbd7 {[%clk 0:02:52.8]} 11. Nc3
{[%clk 0:02:59.7]} 11... d5 {[%clk 0:02:51]} 12. Ne5 {[%clk 0:02:58.9]} 12...
Rc8 {[%clk 0:02:34.6]} 13. cxd5 {[%clk 0:02:57.5]} 13... Nxd5 {[%clk 0:02:31.2]}
14. Nxd5 {[%clk 0:02:57.1]} 14... Bxd5 {[%clk 0:02:32.1]} 15. Bxd5 {[%clk
0:02:52.9]} 15... exd5 {[%clk 0:02:33]} 16. Rc1 {[%clk 0:02:51.4]} 16... Nxe5
{[%clk 0:01:52.4]} 17. dxe5 {[%clk 0:02:49.1]} 17... Bc5 {[%clk 0:01:31.3]} 18.
Qg4 {[%clk 0:02:47.3]} 18... Qe8 {[%clk 0:00:56.7]} 19. e6 {[%clk 0:02:15.9]}
19... f6 {[%clk 0:00:26.3]} 20. e7 {[%clk 0:02:09]} 20... Qxe7 {[%clk
0:00:20.5]} 21. b4 {[%clk 0:01:40.7]} 21... f5 {[%clk 0:00:17.8]} 22. Qh3 {[%clk
0:01:10.7]} 22... Bxb4 {[%clk 0:00:16.7]} 23. Rxc8 {[%clk 0:01:11.6]} 23... Rxc8
{[%clk 0:00:16.9]} 24. Qxf5 {[%clk 0:01:12.1]} 24... Rd8 {[%clk 0:00:17.1]} 25.
Rd1 {[%clk 0:01:11.1]} 25... Qf7 {[%clk 0:00:14.6]} 26. Qg5 {[%clk 0:01:06.3]}
26... Be7 {[%clk 0:00:10.2]} 27. Qg4 {[%clk 0:01:06.1]} 27... Bc5 {[%clk
0:00:09.8]} 28. Bd4 {[%clk 0:01:03.7]} 28... h6 {[%clk 0:00:08.6]} 29. h4 {[%clk
0:01:03.1]} 29... Re8 {[%clk 0:00:06.9]} 30. h5 {[%clk 0:00:58.5]} 30... Re4
{[%clk 0:00:06.7]} 31. Qc8+ {[%clk 0:00:58.2]} 31... Kh7 {[%clk 0:00:06.6]} 32.
Bxc5 {[%clk 0:00:56.4]} 32... Qxh5 {[%clk 0:00:05.5]} 33. Rc1 {[%clk 0:00:48.2]}
33... bxc5 {[%clk 0:00:05.5]} 34. Qxc5 {[%clk 0:00:47.5]} 34... Qe5 {[%clk
0:00:05]} 35. Qxa7 {[%clk 0:00:42.6]} 35... d4 {[%clk 0:00:05]} 36. Qa3 {[%clk
0:00:33.6]} 36... Re1+ {[%clk 0:00:04.7]} 37. Rxe1 {[%clk 0:00:33.6]} 37...
Qxe1+ {[%clk 0:00:05.6]} 38. Kg2 {[%clk 0:00:34.5]} 38... Qc3 {[%clk 0:00:05.9]}
39. Qe7 {[%clk 0:00:30.3]} 39... d3 {[%clk 0:00:03.9]} 40. Qe4+ {[%clk
0:00:29.8]} 40... g6 {[%clk 0:00:03.6]} 41. Qe7+ {[%clk 0:00:25.3]} 41... Kh8
{[%clk 0:00:02.7]} 42. Qd8+ {[%clk 0:00:21.3]} 42... Kh7 {[%clk 0:00:03]} 43.
Qd7+ {[%clk 0:00:20.7]} 43... Kg8 {[%clk 0:00:03.4]} 44. Kf3 {[%clk 0:00:20.4]}
1-0

[Event "*** Titled Tuesday Blitz"]
[Site "Chess.com"]
[Date "2020.05.19"]
[Round "4"]
[White "bsnsun"]
[Black "Maybe00"]
[Result "0-1"]
[WhiteElo "2480"]
[BlackElo "2675"]
[TimeControl "180+1"]
[EndTime "12:40:59 PDT"]
[Termination "Maybe00 won by resignation"]

1. Nf3 {[%clk 0:03:00.9]} 1... d5 {[%clk 0:02:59.9]} 2. g3 {[%clk 0:02:57.7]}
2... c6 {[%clk 0:03:00.2]} 3. c4 {[%clk 0:02:56.3]} 3... Bg4 {[%clk 0:03:00.2]}
4. Bg2 {[%clk 0:02:38.2]} 4... e6 {[%clk 0:02:59.8]} 5. cxd5 {[%clk 0:02:35.8]}
5... Bxf3 {[%clk 0:02:58.6]} 6. Bxf3 {[%clk 0:02:35.7]} 6... cxd5 {[%clk
0:02:59.5]} 7. d4 {[%clk 0:02:35]} 7... Nc6 {[%clk 0:03:00]} 8. O-O {[%clk
0:02:35.2]} 8... Nf6 {[%clk 0:03:00.4]} 9. Nc3 {[%clk 0:02:35.6]} 9... Be7
{[%clk 0:02:58.8]} 10. e3 {[%clk 0:02:35.9]} 10... O-O {[%clk 0:02:59.1]} 11.
Bd2 {[%clk 0:02:36.3]} 11... Rc8 {[%clk 0:02:59.7]} 12. Rc1 {[%clk 0:02:36.6]}
12... Nd7 {[%clk 0:03:00.3]} 13. Qe2 {[%clk 0:02:36.8]} 13... Nb6 {[%clk
0:03:00.8]} 14. Rfd1 {[%clk 0:02:29.1]} 14... Bf6 {[%clk 0:02:57.7]} 15. Bg2
{[%clk 0:02:26.9]} 15... Qe7 {[%clk 0:02:57.8]} 16. Be1 {[%clk 0:02:26.8]} 16...
Rfd8 {[%clk 0:02:57.7]} 17. Nb5 {[%clk 0:02:13.8]} 17... a6 {[%clk 0:02:56.4]}
18. Nc3 {[%clk 0:02:11.1]} 18... g6 {[%clk 0:02:53.9]} 19. h4 {[%clk 0:02:09.7]}
19... h5 {[%clk 0:02:54.3]} 20. Bh3 {[%clk 0:02:07]} 20... Kg7 {[%clk
0:02:53.8]} 21. Bg2 {[%clk 0:02:07.1]} 21... Kh7 {[%clk 0:02:52.5]} 22. Bf3
{[%clk 0:02:06.6]} 22... Kg7 {[%clk 0:02:41.4]} 23. Bg2 {[%clk 0:02:06.3]} 23...
Nc4 {[%clk 0:02:37.8]} 24. b3 {[%clk 0:02:03.3]} 24... Nd6 {[%clk 0:02:38.2]}
25. Na4 {[%clk 0:02:03.3]} 25... Nf5 {[%clk 0:02:37.9]} 26. Nc5 {[%clk 0:02:02]}
26... Ncxd4 {[%clk 0:02:29]} 27. exd4 {[%clk 0:01:59]} 27... Nxd4 {[%clk
0:02:29.9]} 28. Qd3 {[%clk 0:01:35.7]} 28... Rxc5 {[%clk 0:02:26.7]} 29. Bb4
{[%clk 0:01:35.9]} 29... b6 {[%clk 0:02:26.6]} 30. Bxc5 {[%clk 0:01:32.1]} 30...
bxc5 {[%clk 0:02:27.5]} 31. Kh1 {[%clk 0:01:24.1]} 31... Qa7 {[%clk 0:02:25.2]}
32. Bf1 {[%clk 0:01:09.9]} 32... Ra8 {[%clk 0:02:03.7]} 33. Rd2 {[%clk
0:00:56.2]} 33... a5 {[%clk 0:02:02.3]} 34. Bg2 {[%clk 0:00:51.5]} 34... a4
{[%clk 0:01:58.8]} 35. bxa4 {[%clk 0:00:48.5]} 35... c4 {[%clk 0:01:58.7]} 36.
Qa3 {[%clk 0:00:27.9]} 36... Qxa4 {[%clk 0:01:51.5]} 37. Qxa4 {[%clk 0:00:28]}
37... Rxa4 {[%clk 0:01:52.4]} 38. Bf1 {[%clk 0:00:22.5]} 38... Nb5 {[%clk
0:01:45.1]} 39. Kg2 {[%clk 0:00:20.5]} 39... Nc3 {[%clk 0:01:31.3]} 40. Rcc2
{[%clk 0:00:19.9]} 40... Ne4 {[%clk 0:01:31.3]} 41. Rd1 {[%clk 0:00:18.7]} 41...
Nc3 {[%clk 0:01:28.2]} 42. Rdd2 {[%clk 0:00:18.7]} 42... Nb5 {[%clk 0:01:28.5]}
43. Rd1 {[%clk 0:00:17.1]} 43... Na3 {[%clk 0:01:28]} 44. Re2 {[%clk 0:00:14.6]}
44... d4 {[%clk 0:01:24.4]} 45. Red2 {[%clk 0:00:11.3]} 45... d3 {[%clk
0:01:24.6]} 46. Bxd3 {[%clk 0:00:10.3]} 46... cxd3 {[%clk 0:01:25.1]} 47. Rxd3
{[%clk 0:00:10.8]} 47... Nc4 {[%clk 0:01:25.4]} 48. Rd7 {[%clk 0:00:09.3]} 48...
Rxa2 {[%clk 0:01:24.7]} 49. Kg1 {[%clk 0:00:09.7]} 49... Ne5 {[%clk 0:01:24.3]}
50. Rb7 {[%clk 0:00:09.9]} 50... Nf3+ {[%clk 0:01:14.7]} 51. Kg2 {[%clk
0:00:09.9]} 51... Nd4 {[%clk 0:01:14.8]} 52. Kf1 {[%clk 0:00:09.6]} 52... e5
{[%clk 0:01:13.8]} 53. Rc1 {[%clk 0:00:09.9]} 53... Ne6 {[%clk 0:01:13.2]} 54.
Rd1 {[%clk 0:00:10.1]} 54... Ra8 {[%clk 0:01:08.1]} 55. Rdd7 {[%clk 0:00:09]}
55... Rf8 {[%clk 0:01:08.7]} 56. Ra7 {[%clk 0:00:09.4]} 56... e4 {[%clk
0:01:06.6]} 57. Kg2 {[%clk 0:00:09.3]} 57... Nc5 {[%clk 0:01:05.9]} 58. Rd5
{[%clk 0:00:09.2]} 58... Nd3 {[%clk 0:01:05.8]} 59. Ra4 {[%clk 0:00:08.4]} 59...
Re8 {[%clk 0:01:05.5]} 60. Rd7 {[%clk 0:00:08.7]} 60... Nc5 {[%clk 0:01:05.3]}
61. Rda7 {[%clk 0:00:08]} 61... Nxa4 {[%clk 0:01:05.4]} 62. Rxa4 {[%clk
0:00:08.5]} 62... e3 {[%clk 0:01:06.1]} 63. fxe3 {[%clk 0:00:08.1]} 63... Rxe3
{[%clk 0:01:07]} 64. Kf2 {[%clk 0:00:08.5]} 64... Rb3 {[%clk 0:01:07.1]} 0-1

[Event "*** Titled Tuesday Blitz"]
[Site "Chess.com"]
[Date "2020.05.19"]
[Round "4"]
[White "paperotto610"]
[Black "profofchess"]
[Result "0-1"]
[WhiteElo "2289"]
[BlackElo "2462"]
[TimeControl "180+1"]
[EndTime "12:41:00 PDT"]
[Termination "profofchess won on time"]

1. Nf3 {[%clk 0:03:00.9]} 1... Nc6 {[%clk 0:02:59.5]} 2. c4 {[%clk 0:02:59.3]}
2... e5 {[%clk 0:02:59.2]} 3. Nc3 {[%clk 0:02:58.4]} 3... Nf6 {[%clk 0:02:58.2]}
4. g3 {[%clk 0:02:55.5]} 4... Bc5 {[%clk 0:02:57.4]} 5. Bg2 {[%clk 0:02:55.5]}
5... d6 {[%clk 0:02:51.1]} 6. O-O {[%clk 0:02:55.8]} 6... a6 {[%clk 0:02:50.9]}
7. e3 {[%clk 0:02:56]} 7... Ba7 {[%clk 0:02:48.6]} 8. Rb1 {[%clk 0:02:52.9]}
8... O-O {[%clk 0:02:44.5]} 9. b4 {[%clk 0:02:53.4]} 9... Bf5 {[%clk 0:02:32.7]}
10. d3 {[%clk 0:02:51.4]} 10... Qd7 {[%clk 0:02:31.5]} 11. b5 {[%clk 0:02:49.1]}
11... axb5 {[%clk 0:02:30.7]} 12. cxb5 {[%clk 0:02:44.5]} 12... Ne7 {[%clk
0:02:17.6]} 13. Nh4 {[%clk 0:02:38.6]} 13... Bg4 {[%clk 0:02:17.1]} 14. Qb3
{[%clk 0:02:34.5]} 14... Bh3 {[%clk 0:01:58.1]} 15. Bxb7 {[%clk 0:02:27.6]}
15... Bxf1 {[%clk 0:01:57.9]} 16. Kxf1 {[%clk 0:02:26.6]} 16... Rab8 {[%clk
0:01:55.9]} 17. Bg2 {[%clk 0:02:24.4]} 17... d5 {[%clk 0:01:24.9]} 18. a4 {[%clk
0:02:23]} 18... c6 {[%clk 0:01:07.9]} 19. Ba3 {[%clk 0:02:20.6]} 19... Rfd8
{[%clk 0:01:01.5]} 20. Qa2 {[%clk 0:01:56.5]} 20... d4 {[%clk 0:00:58.4]} 21.
exd4 {[%clk 0:01:44.3]} 21... Bxd4 {[%clk 0:00:54.7]} 22. Bxe7 {[%clk
0:01:24.5]} 22... Qxe7 {[%clk 0:00:54.3]} 23. Nf5 {[%clk 0:01:20.4]} 23... Qa7
{[%clk 0:00:48.4]} 24. Nxd4 {[%clk 0:00:52.9]} 24... Qxd4 {[%clk 0:00:44.1]} 25.
Ne2 {[%clk 0:00:52.7]} 25... Qxd3 {[%clk 0:00:38.3]} 26. Bxc6 {[%clk 0:00:51.3]}
26... Ne4 {[%clk 0:00:31.9]} 27. Kg2 {[%clk 0:00:40.5]} 27... Nd2 {[%clk
0:00:23.7]} 28. Re1 {[%clk 0:00:33.5]} 28... e4 {[%clk 0:00:23.9]} 29. Ng1
{[%clk 0:00:28.8]} 29... h5 {[%clk 0:00:20.5]} 30. Re3 {[%clk 0:00:28.1]} 30...
Qd4 {[%clk 0:00:20]} 31. Ne2 {[%clk 0:00:26.6]} 31... Qb4 {[%clk 0:00:19.6]} 32.
Nf4 {[%clk 0:00:20.9]} 32... h4 {[%clk 0:00:18.3]} 33. Nd5 {[%clk 0:00:19.7]}
33... Qd4 {[%clk 0:00:16.7]} 34. Ne7+ {[%clk 0:00:18]} 34... Kf8 {[%clk
0:00:16.7]} 35. Nf5 {[%clk 0:00:17.4]} 35... h3+ {[%clk 0:00:15.5]} 36. Kxh3
{[%clk 0:00:16]} 36... Qf6 {[%clk 0:00:15.5]} 37. g4 {[%clk 0:00:14.4]} 37... g6
{[%clk 0:00:14.5]} 38. Ng3 {[%clk 0:00:05.7]} 38... Qxf2 {[%clk 0:00:13.3]} 39.
Qa3+ {[%clk 0:00:04.4]} 39... Kg8 {[%clk 0:00:11.9]} 40. Nxe4 {[%clk 0:00:04.9]}
40... Nxe4 {[%clk 0:00:11.4]} 41. Bxe4 {[%clk 0:00:05.3]} 41... Rd2 {[%clk
0:00:10.9]} 0-1

[Event "*** Titled Tuesday Blitz"]
[Site "Chess.com"]
[Date "2020.05.19"]
[Round "4"]
[White "Chichin_chao"]
[Black "Bastiandash"]
[Result "0-1"]
[WhiteElo "2387"]
[BlackElo "2197"]
[TimeControl "180+1"]
[EndTime "12:41:00 PDT"]
[Termination "Bastiandash won on time"]

1. e4 {[%clk 0:03:00.9]} 1... d5 {[%clk 0:02:58.1]} 2. exd5 {[%clk 0:02:58.6]}
2... Qxd5 {[%clk 0:02:59]} 3. Nc3 {[%clk 0:02:58.2]} 3... Qd8 {[%clk 0:02:57.1]}
4. Bc4 {[%clk 0:02:54.9]} 4... Nf6 {[%clk 0:02:54.7]} 5. d4 {[%clk 0:02:54.1]}
5... c6 {[%clk 0:02:52.3]} 6. Nge2 {[%clk 0:02:50.3]} 6... Bf5 {[%clk
0:02:51.6]} 7. O-O {[%clk 0:02:48.9]} 7... e6 {[%clk 0:02:51.5]} 8. Ng3 {[%clk
0:02:36.5]} 8... Bg6 {[%clk 0:02:43.7]} 9. Re1 {[%clk 0:02:36.2]} 9... Be7
{[%clk 0:02:43.4]} 10. Nce2 {[%clk 0:02:33.2]} 10... O-O {[%clk 0:02:31.4]} 11.
Nf4 {[%clk 0:02:32.6]} 11... Nbd7 {[%clk 0:02:21]} 12. h4 {[%clk 0:02:31.5]}
12... Nb6 {[%clk 0:02:10.5]} 13. Bb3 {[%clk 0:02:18.2]} 13... Nbd5 {[%clk
0:01:48.8]} 14. h5 {[%clk 0:02:05.6]} 14... Nxf4 {[%clk 0:01:43.5]} 15. Bxf4
{[%clk 0:02:06.5]} 15... Bf5 {[%clk 0:01:24.5]} 16. Nxf5 {[%clk 0:02:04]} 16...
exf5 {[%clk 0:01:24.9]} 17. h6 {[%clk 0:02:03.6]} 17... g6 {[%clk 0:01:21.5]}
18. c4 {[%clk 0:01:52.3]} 18... Nh5 {[%clk 0:00:57.7]} 19. Bd2 {[%clk
0:01:14.9]} 19... Bg5 {[%clk 0:00:48.3]} 20. Bb4 {[%clk 0:01:12]} 20... Re8
{[%clk 0:00:40.3]} 21. d5 {[%clk 0:01:02.8]} 21... cxd5 {[%clk 0:00:29.6]} 22.
cxd5 {[%clk 0:01:03.7]} 22... Rxe1+ {[%clk 0:00:22.7]} 23. Qxe1 {[%clk
0:01:04.6]} 23... Qd7 {[%clk 0:00:17.7]} 24. d6 {[%clk 0:00:37.2]} 24... Re8
{[%clk 0:00:17.5]} 25. Qd1 {[%clk 0:00:36]} 25... Bxh6 {[%clk 0:00:13]} 26. Ba4
{[%clk 0:00:31.2]} 26... b5 {[%clk 0:00:12.5]} 27. Bb3 {[%clk 0:00:30.7]} 27...
Bf8 {[%clk 0:00:09.5]} 28. Qd4 {[%clk 0:00:27.7]} 28... Ng7 {[%clk 0:00:07.2]}
29. Rd1 {[%clk 0:00:27.3]} 29... Rd8 {[%clk 0:00:07.5]} 30. Bc3 {[%clk 0:00:17]}
30... Qxd6 {[%clk 0:00:04.2]} 31. Qxa7 {[%clk 0:00:10.6]} 31... Qe7 {[%clk
0:00:03.1]} 32. Re1 {[%clk 0:00:08.4]} 32... Qxa7 {[%clk 0:00:02.6]} 33. a3
{[%clk 0:00:06]} 33... Qd7 {[%clk 0:00:03.5]} 34. Rd1 {[%clk 0:00:05.6]} 34...
Ne6 {[%clk 0:00:04]} 35. Re1 {[%clk 0:00:04.6]} 35... Bg7 {[%clk 0:00:02.7]} 36.
Bb4 {[%clk 0:00:03.7]} 36... Bf8 {[%clk 0:00:02.6]} 37. Bc3 {[%clk 0:00:02.6]}
37... Bd6 {[%clk 0:00:03.5]} 38. g3 {[%clk 0:00:02.6]} 38... Nc5 {[%clk
0:00:04]} 0-1

[Event "*** Titled Tuesday Blitz"]
[Site "Chess.com"]
[Date "2020.05.19"]
[Round "4"]
[White "crazy_but_lazy"]
[Black "Prostochendir"]
[Result "1-0"]
[WhiteElo "2346"]
[BlackElo "2171"]
[TimeControl "180+1"]
[EndTime "12:41:01 PDT"]
[Termination "crazy_but_lazy won on time"]

1. d4 {[%clk 0:03:00.9]} 1... b6 {[%clk 0:02:58]} 2. c4 {[%clk 0:03:00.4]} 2...
Bb7 {[%clk 0:02:58.3]} 3. Nc3 {[%clk 0:03:01]} 3... e6 {[%clk 0:02:58.7]} 4. d5
{[%clk 0:03:01]} 4... Bb4 {[%clk 0:02:56.6]} 5. g3 {[%clk 0:02:51.5]} 5... exd5
{[%clk 0:02:43.1]} 6. cxd5 {[%clk 0:02:50.3]} 6... Nf6 {[%clk 0:02:38.8]} 7. Bg2
{[%clk 0:02:49.3]} 7... O-O {[%clk 0:02:36.1]} 8. a3 {[%clk 0:02:22.3]} 8...
Bxc3+ {[%clk 0:02:24.5]} 9. bxc3 {[%clk 0:02:23.2]} 9... Qe7 {[%clk 0:02:23.1]}
10. c4 {[%clk 0:02:03.8]} 10... d6 {[%clk 0:02:16]} 11. Nf3 {[%clk 0:02:01.3]}
11... Ne4 {[%clk 0:02:10.8]} 12. Bb2 {[%clk 0:01:54.5]} 12... Nd7 {[%clk
0:02:08.6]} 13. O-O {[%clk 0:01:53.4]} 13... Ndc5 {[%clk 0:02:07.8]} 14. Qc2
{[%clk 0:01:50.1]} 14... a5 {[%clk 0:01:59]} 15. Nd4 {[%clk 0:01:45.5]} 15... g6
{[%clk 0:01:40.3]} 16. Rae1 {[%clk 0:01:31.6]} 16... f5 {[%clk 0:01:31.5]} 17.
e3 {[%clk 0:01:03.3]} 17... Rae8 {[%clk 0:01:26.5]} 18. Re2 {[%clk 0:00:47.4]}
18... Nf6 {[%clk 0:01:17.5]} 19. Rfe1 {[%clk 0:00:44.8]} 19... Nfd7 {[%clk
0:01:09.5]} 20. e4 {[%clk 0:00:34]} 20... f4 {[%clk 0:01:05.1]} 21. Nf3 {[%clk
0:00:18]} 21... Ne5 {[%clk 0:00:59.4]} 22. Nxe5 {[%clk 0:00:14.1]} 22... dxe5
{[%clk 0:00:58.9]} 23. f3 {[%clk 0:00:14.5]} 23... fxg3 {[%clk 0:00:43.5]} 24.
hxg3 {[%clk 0:00:15.4]} 24... Ba6 {[%clk 0:00:22.1]} 25. a4 {[%clk 0:00:14.1]}
25... Qd7 {[%clk 0:00:17.6]} 26. Ba3 {[%clk 0:00:12.5]} 26... Qxa4 {[%clk
0:00:09.2]} 27. Qxa4 {[%clk 0:00:11.6]} 27... Nxa4 {[%clk 0:00:10.1]} 28. Bxf8
{[%clk 0:00:11.6]} 28... Rxf8 {[%clk 0:00:08.2]} 29. Rc2 {[%clk 0:00:10.9]}
29... Nc5 {[%clk 0:00:07.7]} 30. f4 {[%clk 0:00:09.1]} 30... exf4 {[%clk
0:00:01.6]} 31. gxf4 {[%clk 0:00:10]} 31... Rxf4 {[%clk 0:00:01.5]} 32. e5
{[%clk 0:00:10.3]} 1-0